bitfinex-derivatives/quotes_ETHF0:USTF0_20251226
["timestamp","ask_amount","ask_price","bid_price","bid_amount"]
[1766716442216,0.00371144,2989.9,2987.8,1.12571048]
[1766716442410,0.00371144,2989.9,2987.6,2.84728348]
[1766716442411,0.16729,2991.2,2989.2,1.12571048]
[1766716442712,0.16725,2991.9,2989.9,0.00501436]
[1766716443017,40.8,2991.6,2989.9,0.00501436]
[1766716443218,3.356,2991.6,2989.9,0.00501436]
[1766716443618,40.8,2991.5,2989.9,0.00853963]
[1766716444018,44.156,2991.5,2988.5,6.03269912]
[1766716444221,0.16729,2991.2,2988.5,3.19043]
[1766716444415,0.16729,2991.2,2988.7,1.12571048]
[1766716444621,0.16729,2991.2,2988.8,0.16742]
[1766716444926,0.16729,2991.2,2988.8,3.79059742]
[1766716445225,0.00501436,2990.3,2989.7,1.436e-05]
[1766716446021,0.00501436,2990.3,2988.8,0.00389459]
[1766716446621,44.156,2990.2,2988.8,0.00389459]
[1766716446930,44.156,2990.2,2987.9,1.12571048]
[1766716447227,44.156,2990.2,2988.8,0.00501436]
[1766716447620,44.156,2990.2,2988.8,1.436e-05]
[1766716447819,44.156,2990.2,2987.7,0.16748]
[1766716447820,0.16735,2990.0,2987.7,0.16748]
[1766716448422,3.356,2989.9,2987.0,1.47845994]
[1766716448623,0.16739,2989.3,2987.0,1.47845994]
[1766716448923,0.00501436,2988.5,2987.2,11.31189318]
[1766716449630,0.00501436,2988.5,2987.2,11.47940318]
[1766716449933,0.00501436,2988.5,2987.6,0.00501436]
[1766716454431,0.00501436,2988.5,2987.2,11.31189318]
[1766716454432,0.00501436,2988.5,2987.2,0.00403189]
[1766716455329,0.00501436,2988.5,2987.6,0.00501436]
[1766716455720,0.00501436,2988.5,2987.6,1.436e-05]
[1766716455926,0.00501436,2988.5,2987.2,0.00403189]
[1766716456832,0.16745,2988.3,2987.2,0.00403189]
[1766716457032,0.16746,2988.1,2986.6,1.44008677]
[1766716457528,0.16747,2988.0,2985.7,0.16759]
[1766716457734,0.16747,2988.0,2986.0,1.12571048]
[1766716458030,0.00501436,2987.3,2986.0,1.12845922]
[1766716459121,0.00501436,2987.3,2986.0,0.00274874]
[1766716459930,0.16751,2987.2,2986.0,0.00274874]
[1766716460126,0.17083467,2987.2,2986.0,0.00274874]
[1766716460933,0.00332467,2987.2,2986.0,0.00274874]
[1766716461331,40.8,2987.1,2986.0,0.00274874]
[1766716461733,0.00332467,2987.2,2986.0,0.00274874]
[1766716464429,0.00332467,2987.2,2984.5,0.14438429]
[1766716464430,3.35932467,2987.2,2982.7,2.27512316]
[1766716464630,3.35932467,2987.2,2979.4,7.90845423]
[1766716464631,0.16765,2984.8,2981.7,1.12571048]
[1766716464827,0.16765,2984.8,2982.7,1.12571048]
[1766716465137,3.356,2985.1,2983.2,1.12571048]
[1766716465332,0.00421114,2985.1,2983.2,1.12998158]
[1766716465633,0.00421114,2985.1,2983.7,1.12571048]
[1766716465834,0.00421114,2985.1,2983.3,3.52972302]
[1766716466041,0.00421114,2985.1,2984.0,8.0160484]
[1766716466230,0.00421114,2985.1,2983.3,3.53951579]
[1766716466437,0.00421114,2985.1,2983.6,8.0160484]
[1766716469234,0.335,2985.0,2983.9,8.0160484]
[1766716469543,0.16765,2984.7,2983.2,0.0042711]
[1766716469738,3.356,2984.9,2983.2,0.0042711]
[1766716470046,0.16769,2984.0,2982.0,1.45495326]
[1766716470344,0.00502503,2983.5,2982.0,1.45495326]
[1766716471042,0.00502503,2983.5,2982.6,8.0160484]
[1766716471536,0.00502503,2983.5,2982.5,0.00552296]
[1766716471537,0.00502503,2983.5,2982.0,1.45495326]
[1766716472244,0.00502503,2983.5,2981.5,0.18979754]
[1766716472443,7.46602503,2983.5,2980.0,0.16791]
[1766716472642,0.00502503,2982.0,2980.0,0.17060725]
[1766716472830,7.461,2983.5,2980.3,3.50308088]
[1766716473035,0.16772,2983.5,2980.4,0.16789]
[1766716473235,40.8,2983.4,2980.4,3.67097088]
[1766716473435,0.16774,2983.2,2980.4,3.67097088]
[1766716473742,0.16775,2983.0,2980.4,0.16789]
[1766716474038,0.00502503,2982.0,2981.4,2.503e-05]
[1766716474546,0.00502503,2982.0,2980.1,3.63756669]
[1766716474738,0.00502503,2982.0,2980.5,8.0160484]
[1766716476247,0.00502503,2982.0,2980.8,8.0160484]
[1766716476742,0.00502503,2982.0,2980.0,0.00269725]
[1766716476940,0.00502503,2982.0,2980.3,8.0160484]
[1766716480644,0.00502503,2982.0,2980.6,8.0160484]
[1766716481242,0.00502503,2982.0,2980.0,0.00269725]
[1766716481454,0.16783,2981.5,2980.0,0.00269725]
[1766716481741,0.00502503,2982.0,2980.0,0.00269725]
[1766716481742,0.16784,2981.3,2980.0,0.00269725]
[1766716482244,0.16786,2981.0,2979.8,0.3]
[1766716482439,0.16786,2981.0,2979.8,0.1306]
[1766716482636,0.16786,2980.9,2978.8,4.614]
[1766716482843,0.00503373,2980.1,2978.8,4.614]
[1766716483045,0.00503373,2980.1,2979.0,8.0160484]
[1766716483249,0.00776367,2980.1,2979.0,0.00267276]
[1766716483547,0.00776367,2980.1,2977.1,0.31480485]
[1766716483548,0.16792,2979.9,2977.1,0.31480485]
[1766716483738,0.16793,2979.8,2977.5,8.0160484]
[1766716484138,3.356,2979.9,2977.5,8.0160484]
[1766716484338,0.16794,2979.6,2977.5,8.0160484]
[1766716484542,0.16794,2979.6,2977.5,8.01911173]
[1766716485548,0.16794,2979.5,2977.5,0.00306333]
[1766716485846,3.356,2979.9,2977.5,0.00306333]
[1766716486146,0.16797,2979.0,2976.9,12.58083658]
[1766716486342,0.16797,2979.0,2977.0,8.0160484]
[1766716486547,0.16797,2979.0,2974.2,2.6346298]
[1766716486548,0.168,2978.6,2976.2,0.16813]
[1766716486845,0.158,2979.5,2976.5,0.16811]
[1766716487238,40.8,2979.4,2976.5,0.17208932]
[1766716487437,0.00503373,2978.3,2977.7,3.373e-05]
[1766716487636,0.00503373,2978.3,2976.5,0.00397932]
[1766716487849,0.00503373,2978.3,2976.6,8.0160484]
[1766716488735,0.00503373,2978.3,2976.5,0.00397932]
[1766716488939,0.00503373,2978.3,2976.7,8.0160484]
[1766716489442,0.00503373,2978.3,2976.8,8.0160484]
[1766716489642,0.00503373,2978.3,2976.5,0.00397932]
[1766716489838,0.16802,2978.1,2976.5,0.00397932]
[1766716490244,0.16803,2978.0,2976.5,0.00397932]
[1766716490446,0.16803,2977.9,2976.5,0.00397932]
[1766716490844,0.16803,2977.9,2976.5,8.02002772]
[1766716491046,0.16803,2977.9,2976.5,0.00397932]
[1766716491640,0.0038786,2978.0,2976.5,8.02002772]
[1766716494544,0.0038786,2978.0,2976.9,8.0160484]
[1766716494743,0.0038786,2978.0,2976.5,0.00397932]
[1766716495347,0.16806,2977.5,2976.5,0.00397932]
[1766716495542,0.16807,2977.3,2975.4,0.14909703]
[1766716495748,0.00503373,2976.6,2975.5,8.0160484]
[1766716495945,40.8,2977.9,2975.5,8.0160484]
[1766716496147,0.16804,2977.8,2975.8,8.0160484]
[1766716496444,0.16807,2977.4,2975.8,0.00238705]
[1766716496840,0.16807,2977.4,2975.9,8.0160484]
[1766716497053,0.00503373,2976.9,2976.4,0.00503373]
[1766716497747,40.8,2977.9,2976.4,0.00503373]
[1766716497952,0.0038786,2978.0,2976.4,0.00503373]
[1766716498654,0.00503373,2977.5,2976.4,0.00503373]
[1766716500345,0.0038786,2978.0,2976.5,0.16811]
[1766716500546,0.16796,2979.3,2976.5,3.72843065]
[1766716500745,0.16796,2979.3,2976.4,0.00503373]
[1766716500746,1.28211982,2979.3,2976.4,0.00503373]
[1766716501046,0.168,2978.6,2976.5,3.87986658]
[1766716501249,3.356,2979.2,2976.5,3.87986658]
[1766716501452,0.16796,2979.3,2977.1,0.16808]
[1766716501650,0.00397184,2979.2,2977.1,5.90911982]
[1766716501851,1.23086663,2980.2,2977.2,3.79678226]
[1766716502345,1.23086663,2980.2,2977.3,4.627]
[1766716502547,0.16792,2980.0,2978.4,0.00503373]
[1766716502750,0.0039143,2980.0,2978.4,0.00879008]
[1766716502954,1.23086663,2980.2,2978.5,3.75723562]
[1766716503347,1.23086663,2980.2,2978.7,0.16798]
[1766716503657,0.16783,2981.6,2978.8,3.92521562]
[1766716503856,0.16783,2981.6,2979.5,8.0160484]
[1766716504065,0.08947809,2981.2,2979.5,8.0160484]
[1766716504559,0.0029429,2981.2,2980.1,0.00503373]
[1766716505144,0.16779,2982.3,2980.1,0.00503373]
[1766716505548,1.23750685,2982.6,2980.2,3.69007625]
[1766716505750,1.23750685,2982.6,2980.5,1.28211982]
[1766716505955,1.18855025,2984.7,2981.0,0.16785]
[1766716506157,0.16772,2983.5,2981.1,0.122]
[1766716506353,0.00400153,2984.7,2981.1,0.122]
[1766716506354,0.16768,2984.2,2982.6,0.00503373]
[1766716506757,0.00400153,2984.7,2982.6,8.02108213]
[1766716507553,0.00400153,2984.7,2982.7,4.626]
[1766716508258,0.3338,2984.6,2982.7,4.626]
[1766716508558,0.3338,2984.6,2982.8,3.6286294]
[1766716509153,0.3338,2984.6,2982.9,4.628]
[1766716509557,0.3338,2984.6,2983.0,3.85312861]
[1766716510857,0.3338,2984.6,2983.1,4.631]
[1766716511068,0.3338,2984.6,2983.1,4.63524186]
[1766716511468,0.3338,2984.6,2983.2,4.632]
[1766716511868,0.3338,2984.6,2983.1,0.00424186]
[1766716512170,0.14672485,2986.0,2983.3,3.62243569]
[1766716512471,0.14672485,2986.0,2984.4,0.00503373]
[1766716513061,0.15092567,2986.0,2984.4,0.00503373]
[1766716514159,0.15092567,2986.0,2984.4,3.373e-05]
[1766716514361,0.00497021,2985.5,2983.1,0.00424186]
[1766716514568,0.00497021,2985.5,2983.2,0.756]
[1766716514860,0.00497021,2985.5,2983.3,8.0160484]
[1766716515255,0.00497021,2985.5,2984.1,0.00502479]
[1766716515461,0.17258021,2985.5,2984.1,0.00502479]
[1766716515870,0.16764,2985.0,2983.1,0.00424186]
[1766716516066,0.16765,2984.7,2983.1,0.00424186]
[1766716516469,0.16765,2984.7,2983.4,8.0160484]
[1766716516666,0.16765,2984.7,2983.1,0.00424186]
[1766716516867,0.16765,2984.7,2983.6,8.0160484]
[1766716517166,0.16765,2984.7,2983.1,0.00424186]
[1766716517362,0.16766,2984.6,2983.1,7.33409026]
[1766716517558,0.16766,2984.6,2983.1,0.00424186]
[1766716517757,0.17258021,2985.5,2983.6,0.00502479]
[1766716517961,0.00497021,2985.5,2983.6,0.00502479]
[1766716518173,0.16764,2984.9,2983.6,0.00502479]
[1766716520175,0.00497021,2985.5,2983.6,0.00502479]
[1766716520176,0.00497021,2985.5,2983.6,7.33487319]
[1766716521476,0.16765,2984.7,2983.6,7.33487319]
[1766716522971,0.00497021,2985.5,2983.6,7.33487319]
[1766716523271,0.00497021,2985.5,2984.2,7.3298484]
[1766716523468,0.00497021,2985.5,2984.2,6.6616384]
[1766716523668,0.00497021,2985.5,2983.6,0.00502479]
[1766716524069,0.16765,2984.7,2983.6,0.00502479]
[1766716524578,0.16765,2984.7,2983.9,6.0354384]
[1766716524780,0.00497021,2985.5,2983.9,6.0354384]
[1766716524975,0.16762,2985.2,2983.9,6.0354384]
[1766716525677,0.16763,2985.1,2983.9,6.0354384]
[1766716528876,0.00497021,2985.5,2983.9,6.0354384]
[1766716529181,0.87261678,2985.4,2983.6,0.00502479]
[1766716529380,3.359,2985.3,2984.0,5.8788384]
[1766716530276,0.00497021,2985.5,2984.0,5.8788384]
[1766716530980,0.16763,2985.0,2984.0,5.8788384]
[1766716531176,3.359,2985.3,2983.6,0.00502479]
[1766716531378,0.00497021,2985.5,2984.1,5.3452384]
[1766716531379,3.359,2985.1,2984.1,5.3452384]
[1766716531576,0.8757887,2985.0,2984.1,5.3452384]
[1766716532374,0.16765,2984.8,2984.1,5.3452384]
[1766716533084,0.00497021,2985.5,2984.1,5.3452384]
[1766716533277,0.16764,2984.9,2984.1,5.3452384]
[1766716533479,0.16766,2984.6,2984.1,3.1207277]
[1766716533679,0.87987063,2984.5,2983.6,0.00502479]
[1766716533886,1.04754063,2984.4,2983.6,0.00502479]
[1766716534180,1.18855025,2984.9,2983.6,0.00502479]
[1766716534584,0.98855025,2984.9,2983.6,0.00502479]
[1766716534785,0.16765,2984.8,2983.6,0.00502479]
[1766716538884,1.75693834,2984.6,2983.6,0.00502479]
[1766716539083,1.1301811,2985.3,2983.6,0.00502479]
[1766716539084,1.75693834,2984.5,2983.6,0.00502479]
[1766716539285,0.16767,2984.4,2983.6,0.00502479]
[1766716541083,1.92460834,2984.4,2983.1,0.00424186]
[1766716541283,1.75693834,2984.7,2983.1,0.00424186]
[1766716542089,1.92458834,2984.7,2983.6,0.00502479]
[1766716544094,1.75693834,2984.6,2983.6,0.00502479]
[1766716545197,1.92458834,2984.7,2983.6,0.00502479]
[1766716546102,0.87428589,2984.6,2983.6,0.00502479]
[1766716546295,0.87428589,2984.5,2983.6,0.00502479]
[1766716546495,1.75693834,2984.8,2983.6,0.00502479]
[1766716546695,1.75693834,2985.3,2983.8,1.1301811]
[1766716546902,0.00497021,2985.5,2983.8,1.1301811]
[1766716547497,0.00497021,2985.5,2983.6,0.17273479]
[1766716547703,0.17258021,2985.5,2983.6,0.17273479]
[1766716549804,0.17258021,2985.5,2983.7,3.55878514]
[1766716554205,0.17258021,2985.5,2983.6,0.17273479]
[1766716559309,0.16764,2985.0,2983.6,0.00502479]
[1766716559710,0.16764,2984.9,2983.6,0.00502479]
[1766716560417,0.16765,2984.7,2983.6,0.00502479]
[1766716561413,0.00497021,2985.5,2983.6,0.00502479]
[1766716562211,0.16765,2984.8,2983.6,0.00502479]
[1766716562406,0.16765,2984.7,2983.6,0.00502479]
[1766716562602,0.16766,2984.6,2983.6,0.00502479]
[1766716562904,0.16766,2984.6,2983.6,2.479e-05]
[1766716563615,2.64397021,2985.5,2983.6,2.479e-05]
[1766716563616,0.16762,2985.3,2983.6,2.479e-05]
[1766716563818,2.64397021,2985.5,2983.6,2.479e-05]
[1766716564017,0.16764,2984.9,2983.6,2.479e-05]
[1766716573021,3.359,2985.3,2983.6,2.479e-05]
[1766716573220,1.1301811,2985.4,2983.6,2.479e-05]
[1766716573221,3.359,2984.8,2983.6,2.479e-05]
[1766716573424,0.16769,2984.0,2982.3,1.46504272]
[1766716573623,3.359,2984.8,2982.3,1.46504272]
[1766716573624,0.16765,2984.7,2982.3,1.46504272]
[1766716573824,44.159,2984.8,2982.3,1.46504272]
[1766716574224,0.16768,2984.1,2982.3,1.46504272]
[1766716574425,0.00502479,2983.5,2982.3,1.4690038]
[1766716574622,0.00749147,2983.5,2982.3,0.00396108]
[1766716575320,0.00749147,2983.5,2982.6,0.00337071]
[1766716575929,0.00749147,2983.5,2982.3,0.00396108]
[1766716577729,0.00749147,2983.5,2981.3,12.64701164]
[1766716578833,0.00749147,2983.5,2981.9,1.4735407]
[1766716579033,0.17521147,2983.5,2981.9,1.4735407]
[1766716580032,0.00749147,2983.5,2981.9,1.4735407]
[1766716580331,0.16768,2984.2,2982.1,0.16779]
[1766716580733,0.16768,2984.2,2982.2,3.51408283]
[1766716581432,0.00502479,2983.5,2982.9,0.00502479]
[1766716581939,0.00416791,2984.2,2982.9,0.00502479]
[1766716582829,0.00502479,2983.8,2982.9,0.00502479]
[1766716583027,0.16764,2984.8,2982.9,0.00502479]
[1766716584038,0.00502479,2984.1,2982.9,0.00502479]
[1766716584240,0.00759719,2984.1,2982.9,0.00502479]
[1766716587527,0.17528719,2984.1,2982.9,0.00502479]
[1766716587729,0.16769,2984.0,2981.9,0.00315291]
[1766716588641,0.16771,2983.7,2981.9,0.00315291]
[1766716588937,0.16772,2983.5,2981.9,0.00315291]
[1766716589534,3.359,2984.0,2981.9,0.00315291]
[1766716589736,3.359,2984.0,2982.7,0.00502479]
[1766716590934,0.17528719,2984.1,2982.7,0.00502479]
[1766716591640,0.00759719,2984.1,2982.7,0.00502479]
[1766716597344,0.16763,2985.1,2982.8,0.16775]
[1766716597841,3.359,2985.4,2982.8,0.16775]
[1766716598035,0.16765,2984.8,2982.8,0.16775]
[1766716598446,0.00502479,2984.1,2982.8,0.16775]
[1766716600635,0.17116848,2984.8,2982.9,0.16775]
[1766716600840,0.17116848,2984.8,2982.9,4.01510593]
[1766716600841,0.00351848,2984.8,2982.9,4.01510593]
[1766716601042,0.00351848,2984.8,2983.0,0.16774]
[1766716601241,0.00351848,2984.8,2983.0,3.89102112]
[1766716601749,0.00351848,2984.8,2983.3,0.16773]
[1766716602046,0.00351848,2984.8,2983.4,0.16772]
[1766716602646,0.00502479,2984.4,2983.4,0.16772]
[1766716603243,0.00502479,2984.4,2982.8,0.16775]
[1766716603946,0.00502479,2984.4,2982.9,0.16775]
[1766716604147,0.00502479,2984.4,2983.0,0.16774]
[1766716605846,0.00502479,2984.4,2983.2,0.16773]
[1766716606249,0.00502479,2984.4,2983.4,0.16772]
[1766716607146,0.00351848,2984.8,2983.5,0.16771]
[1766716607351,0.00351848,2984.8,2983.6,0.16771]
[1766716608344,0.00502479,2984.5,2983.6,0.16771]
[1766716608949,0.00351848,2984.8,2983.6,0.16771]
[1766716610048,0.00334986,2984.5,2983.6,0.16771]
[1766716611052,0.00351848,2984.8,2983.6,0.16771]
[1766716611354,1.848e-05,2984.8,2983.6,0.16771]
[1766716612955,1.848e-05,2984.8,2983.7,3.68797443]
[1766716613151,1.23764793,2985.9,2984.0,0.16769]
[1766716613349,1.23764793,2985.9,2984.7,0.00502479]
[1766716613755,1.23764793,2985.9,2984.7,0.17267479]
[1766716614156,1.75693834,2988.3,2984.7,0.17267479]
[1766716614157,0.1675,2987.4,2984.8,3.51575174]
[1766716614359,0.1675,2987.4,2985.8,0.00502479]
[1766716614757,0.005,2986.9,2985.8,2.479e-05]
[1766716615158,0.00824683,2986.9,2985.8,2.479e-05]
[1766716621161,1.19846766,2988.6,2986.1,0.16757]
[1766716621460,3.359,2988.5,2986.1,0.16757]
[1766716621665,0.16744,2988.4,2986.1,0.16757]
[1766716621863,3.359,2988.5,2985.8,2.479e-05]
[1766716622062,0.16748,2987.7,2985.8,2.479e-05]
[1766716627966,0.00337485,2988.5,2985.8,2.479e-05]
[1766716628169,0.16748,2987.8,2985.8,2.479e-05]
[1766716629172,0.16748,2987.7,2985.8,2.479e-05]
[1766716629373,3.36237485,2988.5,2985.8,2.479e-05]
[1766716629374,0.16749,2987.6,2985.8,2.479e-05]
[1766716629576,0.16752,2987.1,2985.8,2.479e-05]
[1766716630273,40.8,2987.6,2985.8,2.479e-05]
[1766716630571,0.16748,2987.7,2985.8,2.479e-05]
[1766716630827,7.252,2987.8,2985.8,2.479e-05]
[1766716631075,0.16751,2987.2,2985.8,2.479e-05]
[1766716631869,40.8,2987.7,2985.8,2.479e-05]
[1766716632076,0.16753,2986.9,2984.7,0.00394078]
[1766716632669,3.359,2987.6,2984.7,0.00394078]
[1766716632869,3.359,2987.4,2984.7,0.00394078]
[1766716633169,0.16756,2986.4,2984.7,0.00394078]
[1766716633370,0.16997354,2986.4,2984.7,0.00394078]
[1766716633564,0.00241354,2986.4,2984.7,0.00394078]
[1766716633969,0.00502479,2985.8,2985.3,0.00502479]
[1766716634171,0.00502479,2985.8,2984.7,0.00394078]
[1766716635072,0.00502479,2985.8,2985.0,0.00502479]
[1766716635470,0.00502479,2985.8,2984.7,0.00394078]
[1766716636692,0.00502479,2985.8,2984.7,4.078e-05]
[1766716636978,0.16759,2985.7,2984.4,4.078e-05]
[1766716637677,0.16759,2985.7,2984.8,0.00502479]
[1766716637879,0.16759,2985.7,2984.8,0.00294598]
[1766716638776,0.16759,2985.7,2985.0,0.00502479]
[1766716638971,0.16759,2985.7,2984.4,4.078e-05]
[1766716639171,0.00502479,2985.8,2984.4,4.078e-05]
[1766716639172,0.16761,2985.5,2984.4,4.078e-05]
[1766716639970,0.16761,2985.5,2984.7,0.00332507]
[1766716640165,0.16761,2985.5,2984.4,0.0034679]
[1766716640671,0.16762,2985.3,2982.3,1.0263653]
[1766716640871,0.16763,2985.2,2982.3,1.0263653]
[1766716641072,0.00502479,2984.0,2982.5,3.7142698]
[1766716641278,0.00502479,2984.0,2982.4,3.7142698]
[1766716641470,0.00502479,2984.0,2982.3,1.0263653]
[1766716641672,0.00887245,2984.0,2982.4,3.52858133]
[1766716641970,0.16763,2985.2,2982.4,3.52858133]
[1766716641971,0.16763,2985.2,2982.4,4.80986872]
[1766716642170,0.16763,2985.2,2982.9,0.16775]
[1766716642474,0.16763,2985.2,2983.0,3.59047246]
[1766716643078,0.00502479,2984.4,2983.8,0.00502479]
[1766716646472,0.0033861,2985.2,2983.8,0.00502479]
[1766716647574,0.00502479,2984.8,2983.8,0.00502479]
[1766716650672,0.16765,2984.7,2982.7,0.16776]
[1766716650885,0.16769,2984.1,2982.3,0.00424769]
[1766716651370,0.00502479,2984.8,2982.3,0.00424769]
[1766716651569,0.00502479,2984.8,2982.3,0.17202769]
[1766716651769,0.0033861,2985.2,2983.3,0.00502479]
[1766716651983,0.0033861,2985.2,2983.7,0.1677]
[1766716652577,0.16757,2986.2,2983.9,0.16769]
[1766716652880,0.16757,2986.2,2983.4,1.28128739]
[1766716652881,0.16757,2986.2,2984.0,0.16769]
[1766716653583,0.17058767,2986.2,2984.0,0.16769]
[1766716653972,0.00301767,2986.2,2984.8,0.00502479]
[1766716654175,0.00301767,2986.2,2984.8,0.0085157]
[1766716654983,0.00502479,2985.8,2984.8,0.0085157]
[1766716657478,0.00502479,2985.8,2984.1,0.16768]
[1766716657773,0.00502479,2985.8,2982.2,5.39494392]
[1766716657774,0.00502479,2985.8,2984.0,1.12898557]
[1766716657975,0.16757,2986.1,2984.0,1.12898557]
[1766716658376,0.00502479,2985.3,2984.8,0.00502479]
[1766716660888,0.00301767,2986.2,2984.8,0.00502479]
[1766716661878,0.00502479,2985.8,2984.8,0.00502479]
[1766716666796,0.00301767,2986.2,2984.9,1.12898557]
[1766716667001,0.00301767,2986.2,2984.8,0.00502479]
[1766716667887,0.00502479,2985.8,2984.8,0.00502479]
[1766716675403,0.1676,2985.6,2984.0,0.00235858]
[1766716676106,0.16761,2985.5,2984.0,0.00235858]
[1766716676315,4.48798557,2985.6,2984.0,0.00235858]
[1766716676609,4.48798557,2985.6,2982.1,2.82859943]
[1766716676610,0.16765,2984.8,2982.5,0.16777]
[1766716677007,0.16766,2984.6,2982.5,0.16777]
[1766716677507,0.00502479,2983.8,2983.3,0.00502479]
[1766716677708,0.00808565,2983.8,2983.3,0.00502479]
[1766716677909,0.00808565,2983.8,2982.5,0.00245209]
[1766716679009,0.00808565,2983.8,2982.9,0.00502479]
[1766716679409,0.00808565,2983.8,2982.9,2.479e-05]
[1766716680107,0.16771,2983.7,2982.9,2.479e-05]
[1766716680706,0.00808565,2983.8,2982.9,2.479e-05]
[1766716681516,40.8,2984.9,2982.9,2.479e-05]
[1766716681715,0.16763,2985.1,2982.9,2.479e-05]
[1766716682009,0.16763,2985.1,2983.0,4.79985176]
[1766716682212,30.669,2986.1,2983.1,0.16774]
[1766716682517,0.00502479,2984.3,2983.3,0.16773]
[1766716683014,1.22195151,2985.0,2983.3,0.16773]
[1766716683907,0.00502479,2984.4,2983.3,0.16773]
[1766716684106,1.22195151,2985.0,2983.3,0.16773]
[1766716685117,0.00502479,2984.4,2983.3,0.16773]
[1766716686521,0.00502479,2984.4,2982.9,2.479e-05]
[1766716689506,0.17269479,2984.4,2982.9,2.479e-05]
[1766716689707,0.17269479,2984.4,2982.2,0.83146245]
[1766716690525,0.00502479,2984.4,2982.2,0.83146245]
[1766716690822,0.00502479,2984.4,2983.0,0.00502479]
[1766716694625,0.17269479,2984.4,2983.0,0.00502479]
[1766716695022,0.16767,2984.3,2983.0,0.00502479]
[1766716695616,0.16768,2984.2,2983.0,0.00502479]
[1766716695820,0.16769,2984.1,2983.0,0.00502479]
[1766716696124,0.16769,2984.1,2982.2,0.00253335]
[1766716696125,0.1677,2983.8,2982.2,0.00253335]
[1766716696328,0.16771,2983.7,2982.2,0.00253335]
[1766716697029,3.359,2984.3,2982.2,0.00253335]
[1766716697330,0.16771,2983.7,2982.2,0.00253335]
[1766716697629,3.359,2983.8,2981.1,1.47843791]
[1766716697928,40.8,2984.2,2981.1,1.47843791]
[1766716697929,0.16775,2983.0,2981.1,1.47843791]
[1766716698126,0.00502479,2982.3,2981.8,0.00502479]
[1766716698630,0.00744456,2982.3,2981.8,0.00747026]
[1766716699031,4.456e-05,2982.3,2982.1,0.00502479]
[1766716699328,4.456e-05,2982.3,2981.8,0.00747026]
[1766716699928,0.00506935,2982.3,2981.8,0.00747026]
[1766716700723,3.359,2984.1,2981.8,0.00747026]
[1766716700923,0.16771,2983.6,2981.8,0.00747026]
[1766716701432,0.16772,2983.5,2981.8,0.00747026]
[1766716701629,0.16772,2983.4,2981.8,0.00747026]
[1766716701825,0.00502479,2982.9,2981.8,0.00747026]
[1766716702233,0.17277479,2982.9,2981.8,0.00747026]
[1766716702732,0.16779,2982.2,2981.1,1.47843791]
[1766716703632,0.1678,2982.1,2981.4,0.00502479]
[1766716703935,0.1678,2982.1,2981.4,2.479e-05]
[1766716704132,0.3353,2982.0,2981.4,2.479e-05]
[1766716705138,0.3353,2982.0,2981.1,0.890491]
[1766716706220,0.3353,2982.0,2981.3,0.00502479]
[1766716713631,0.3353,2982.0,2981.1,0.890491]
[1766716714040,0.3353,2982.0,2981.1,0.690491]
[1766716714540,0.3353,2982.0,2981.3,0.00502479]
[1766716714741,0.3353,2982.0,2981.1,0.690491]
[1766716715538,0.3353,2982.0,2981.0,0.0008]
[1766716715740,0.00502479,2981.8,2980.1,0.16791]
[1766716716439,0.00502479,2981.8,2980.1,0.17099816]
[1766716717034,0.00502479,2981.8,2980.1,0.00308816]
[1766716718545,0.16783,2981.5,2980.1,0.00308816]
[1766716719039,0.16783,2981.5,2979.4,0.16795]
[1766716719240,0.16787,2980.9,2978.8,0.16798]
[1766716719439,0.00503339,2980.1,2978.8,0.16798]
[1766716720138,0.00741574,2980.1,2978.8,0.00272221]
[1766716721944,0.00741574,2980.1,2978.8,0.17070221]
[1766716722540,0.00238235,2980.1,2978.8,0.17070221]
[1766716722748,44.159,2981.2,2978.8,0.17070221]
[1766716722937,0.16786,2981.0,2978.8,0.17070221]
[1766716723645,0.00503339,2980.2,2979.6,0.00503339]
[1766716724237,0.00503339,2980.2,2978.8,0.00272221]
[1766716724845,0.17293339,2980.2,2978.8,0.00272221]
[1766716725345,0.16791,2980.1,2978.8,0.00272221]
[1766716725646,0.16792,2979.9,2978.8,0.00272221]
[1766716725843,0.16793,2979.8,2978.8,2.221e-05]
[1766716726249,0.16793,2979.7,2978.4,0.14909703]
[1766716727552,0.16793,2979.7,2978.4,0.15263068]
[1766716727753,0.16794,2979.6,2978.4,0.15263068]
[1766716728455,7.15403339,2980.2,2978.4,0.15263068]
[1766716728956,0.16791,2980.0,2978.4,0.15263068]
[1766716729143,0.16792,2979.9,2978.4,0.15263068]
[1766716729648,10.51303339,2980.2,2978.4,0.15263068]
[1766716729845,0.16793,2979.7,2978.4,0.15263068]
[1766716730047,0.16794,2979.6,2978.4,0.15263068]
[1766716730342,10.51303339,2980.2,2977.9,0.18742651]
[1766716730540,10.51303339,2980.2,2977.2,0.16807]
[1766716730541,3.359,2980.0,2977.2,0.16807]
[1766716730742,8.37726886,2980.2,2977.2,0.16807]
[1766716730743,3.359,2979.8,2977.2,0.16807]
[1766716731556,3.359,2979.8,2977.2,0.17223757]
[1766716731853,3.359,2980.1,2977.2,0.17223757]
[1766716732058,3.359,2979.9,2977.2,0.17223757]
[1766716732243,8.37726886,2980.2,2977.2,0.17223757]
[1766716732244,0.16797,2979.1,2977.2,0.17223757]
[1766716732549,0.00503339,2978.4,2977.2,0.00416757]
[1766716732750,0.00848358,2978.4,2977.2,0.00416757]
[1766716733553,0.16798,2978.9,2977.2,0.00416757]
[1766716733954,3.359,2979.5,2977.2,0.00416757]
[1766716734150,0.16795,2979.4,2977.2,0.00416757]
[1766716734349,0.16796,2979.3,2977.2,0.00416757]
[1766716734554,0.00503339,2978.5,2978.0,0.00503339]
[1766716736148,0.00248451,2979.3,2978.0,0.00503339]
[1766716736955,0.17044451,2979.3,2978.0,0.00503339]
[1766716737158,0.00503339,2978.9,2978.0,0.00503339]
[1766716737653,0.00503339,2978.9,2978.0,3.339e-05]
[1766716740357,0.3356,2979.2,2978.0,3.339e-05]
[1766716740560,0.16791,2980.0,2978.0,3.339e-05]
[1766716740856,40.8,2980.7,2978.0,3.339e-05]
[1766716741059,0.16793,2979.8,2978.0,3.339e-05]
[1766716741252,0.16793,2979.7,2978.0,3.339e-05]
[1766716741449,0.00503339,2979.1,2978.0,3.339e-05]
[1766716742053,0.3431179,2979.1,2978.0,3.339e-05]
[1766716744458,0.00503339,2979.1,2978.0,3.339e-05]
[1766716744659,0.33808451,2979.0,2978.0,3.339e-05]
[1766716744952,0.67338451,2979.0,2978.0,3.339e-05]
[1766716745557,0.16798,2978.9,2978.0,3.339e-05]
[1766716745961,0.168,2978.6,2977.2,0.00416757]
[1766716746458,0.33808451,2978.4,2977.2,0.00416757]